[Event "*** Titled Tuesday Blitz"]
[Site "Chess.com"]
[Date "2019.08.06"]
[Round "1"]
[White "Cayse"]
[Black "chedimir"]
[Result "1-0"]
[WhiteElo "2630"]
[BlackElo "2260"]
[TimeControl "180+2"]
[EndTime "13:08:34 PDT"]
[Termination "Cayse won by resignation"]

1. e4 {[%clk 0:02:38]} 1... c5 {[%clk 0:02:53.5]} 2. Nf3 {[%clk 0:02:38.3]} 2...
d6 {[%clk 0:02:54.5]} 3. Bb5+ {[%clk 0:02:39.1]} 3... Nd7 {[%clk 0:02:54.6]} 4.
O-O {[%clk 0:02:38.9]} 4... a6 {[%clk 0:02:55.5]} 5. Bd3 {[%clk 0:02:38.1]} 5...
Ngf6 {[%clk 0:02:55.5]} 6. c3 {[%clk 0:02:39.2]} 6... g6 {[%clk 0:02:54.4]} 7.
Bc2 {[%clk 0:02:39.8]} 7... Bg7 {[%clk 0:02:54.7]} 8. d4 {[%clk 0:02:40.7]} 8...
O-O {[%clk 0:02:55.2]} 9. Re1 {[%clk 0:02:41.4]} 9... cxd4 {[%clk 0:02:54.6]}
10. cxd4 {[%clk 0:02:41.9]} 10... b6 {[%clk 0:02:52.4]} 11. e5 {[%clk
0:02:38.1]} 11... Nd5 {[%clk 0:02:48.7]} 12. Be4 {[%clk 0:02:37.3]} 12... Bb7
{[%clk 0:02:46]} 13. Qb3 {[%clk 0:02:30.6]} 13... e6 {[%clk 0:02:43.9]} 14. Bg5
{[%clk 0:02:18.3]} 14... Qc7 {[%clk 0:02:40]} 15. Nc3 {[%clk 0:02:05.9]} 15...
Nxc3 {[%clk 0:02:39.4]} 16. exd6 {[%clk 0:02:05.4]} 16... Qxd6 {[%clk
0:02:27.5]} 17. Bxb7 {[%clk 0:02:05.7]} 17... Ra7 {[%clk 0:02:27.6]} 18. Bxa6
{[%clk 0:02:01.7]} 18... Rxa6 {[%clk 0:02:21.4]} 19. bxc3 {[%clk 0:02:02.3]}
19... Rfa8 {[%clk 0:02:20]} 20. a4 {[%clk 0:02:00.9]} 20... Qd5 {[%clk 0:02:17]}
21. Qxd5 {[%clk 0:01:45.3]} 21... exd5 {[%clk 0:02:17.5]} 22. Re7 {[%clk
0:01:46.1]} 22... Nf6 {[%clk 0:02:16.9]} 23. Bxf6 {[%clk 0:01:19.6]} 23... Bxf6
{[%clk 0:02:17.2]} 24. Rd7 {[%clk 0:01:15.5]} 24... Rxa4 {[%clk 0:02:06.3]} 25.
Re1 {[%clk 0:01:14.7]} 25... Ra1 {[%clk 0:01:59.1]} 26. Kf1 {[%clk 0:01:11.8]}
26... Rxe1+ {[%clk 0:01:57.8]} 27. Kxe1 {[%clk 0:01:08.2]} 27... Ra1+ {[%clk
0:01:58.2]} 28. Kd2 {[%clk 0:01:08.5]} 28... Ra2+ {[%clk 0:01:59.8]} 29. Ke3
{[%clk 0:01:09.1]} 29... Rc2 {[%clk 0:02:00.9]} 30. Rxd5 {[%clk 0:01:07.4]}
30... Rxc3+ {[%clk 0:02:00.4]} 31. Ke4 {[%clk 0:01:08.3]} 31... Rc2 {[%clk
0:02:00.6]} 32. Rd6 {[%clk 0:01:07.1]} 32... Kg7 {[%clk 0:02:00.6]} 33. Ke3
{[%clk 0:01:06.8]} 33... Rc3+ {[%clk 0:02:00.3]} 34. Kd2 {[%clk 0:01:07.5]}
34... Rb3 {[%clk 0:02:01]} 35. Kc2 {[%clk 0:01:06]} 35... Rb5 {[%clk 0:02:00.1]}
36. Nd2 {[%clk 0:01:02.7]} 36... Rb4 {[%clk 0:01:58]} 37. Nb3 {[%clk 0:01:01.5]}
37... Be7 {[%clk 0:01:55.7]} 38. Rd7 {[%clk 0:01:01.9]} 38... Kf8 {[%clk
0:01:56]} 39. Rb7 {[%clk 0:01:01.5]} 39... Bd6 {[%clk 0:01:54.6]} 40. g3 {[%clk
0:01:00.2]} 40... Rb5 {[%clk 0:01:51.7]} 41. h4 {[%clk 0:00:56.7]} 41... h6
{[%clk 0:01:52.2]} 42. Kc3 {[%clk 0:00:56.9]} 42... g5 {[%clk 0:01:53]} 43. hxg5
{[%clk 0:00:57.8]} 43... hxg5 {[%clk 0:01:53.6]} 44. g4 {[%clk 0:00:58.3]} 44...
f5 {[%clk 0:01:54]} 45. f3 {[%clk 0:00:56.9]} 45... fxg4 {[%clk 0:01:53]} 46.
fxg4 {[%clk 0:00:58.8]} 46... Be7 {[%clk 0:01:53.1]} 47. Kc4 {[%clk 0:00:54.5]}
47... Rb4+ {[%clk 0:01:53.3]} 48. Kc3 {[%clk 0:00:55.6]} 48... Rb5 {[%clk
0:01:54.4]} 49. Nd2 {[%clk 0:00:56.4]} 49... Kf7 {[%clk 0:01:49.9]} 50. Nc4
{[%clk 0:00:49]} 50... Ke6 {[%clk 0:01:46.2]} 51. Rxb6+ {[%clk 0:00:49.7]} 51...
Rxb6 {[%clk 0:01:46.2]} 52. Nxb6 {[%clk 0:00:51.6]} 52... Bd6 {[%clk 0:01:46.5]}
53. Kd3 {[%clk 0:00:51.7]} 53... Bf4 {[%clk 0:01:46.5]} 54. Ke4 {[%clk 0:00:51]}
54... Kd6 {[%clk 0:01:47.3]} 55. Nc4+ {[%clk 0:00:51]} 55... Kd7 {[%clk
0:01:47.7]} 56. d5 {[%clk 0:00:51.1]} 56... Bc1 {[%clk 0:01:47.6]} 57. Kf5
{[%clk 0:00:50.7]} 57... Bf4 {[%clk 0:01:45.6]} 58. Kf6 {[%clk 0:00:49.7]} 58...
Bd2 {[%clk 0:01:46]} 59. Nxd2 {[%clk 0:00:49.3]} 1-0

[Event "*** Titled Tuesday Blitz"]
[Site "Chess.com"]
[Date "2019.08.06"]
[Round "1"]
[White "RoelandPruijssers"]
[Black "Zhuu96"]
[Result "0-1"]
[WhiteElo "2489"]
[BlackElo "2935"]
[TimeControl "180+2"]
[EndTime "13:08:44 PDT"]
[Termination "Zhuu96 won by checkmate"]

1. e4 {[%clk 0:03:00.8]} 1... c5 {[%clk 0:03:00.3]} 2. Nf3 {[%clk 0:03:01.7]}
2... d6 {[%clk 0:03:01.3]} 3. d4 {[%clk 0:03:03.1]} 3... cxd4 {[%clk 0:03:02.7]}
4. Nxd4 {[%clk 0:03:04.1]} 4... Nf6 {[%clk 0:03:04.4]} 5. Nc3 {[%clk 0:03:04.8]}
5... a6 {[%clk 0:03:06]} 6. Be3 {[%clk 0:03:05.6]} 6... e5 {[%clk 0:03:04.2]} 7.
Nb3 {[%clk 0:03:04.6]} 7... Be7 {[%clk 0:03:05.8]} 8. Qd2 {[%clk 0:03:01.3]}
8... O-O {[%clk 0:03:06.6]} 9. O-O-O {[%clk 0:03:00.5]} 9... a5 {[%clk
0:03:07.6]} 10. a4 {[%clk 0:03:00]} 10... Na6 {[%clk 0:03:06.5]} 11. f4 {[%clk
0:02:42.4]} 11... Ng4 {[%clk 0:02:53.5]} 12. g3 {[%clk 0:02:24.1]} 12... Nb4
{[%clk 0:02:48.2]} 13. Kb1 {[%clk 0:02:16.7]} 13... Nxe3 {[%clk 0:02:38.7]} 14.
Qxe3 {[%clk 0:02:16.5]} 14... Qc7 {[%clk 0:02:40.2]} 15. f5 {[%clk 0:01:58.1]}
15... d5 {[%clk 0:02:39.1]} 16. exd5 {[%clk 0:01:47.8]} 16... Bxf5 {[%clk
0:02:39.5]} 17. Rd2 {[%clk 0:01:43.3]} 17... Rfd8 {[%clk 0:02:31.4]} 18. Bg2
{[%clk 0:01:38.5]} 18... b5 {[%clk 0:02:29.9]} 19. Be4 {[%clk 0:00:46.6]} 19...
Bxe4 {[%clk 0:02:23.9]} 20. Qxe4 {[%clk 0:00:48.5]} 20... bxa4 {[%clk
0:02:25.2]} 21. Nxa4 {[%clk 0:00:49.5]} 21... Bg5 {[%clk 0:02:23.1]} 22. Rdd1
{[%clk 0:00:42.4]} 22... Rab8 {[%clk 0:02:15.2]} 23. Rhe1 {[%clk 0:00:36.7]}
23... Be7 {[%clk 0:02:06.7]} 24. Re3 {[%clk 0:00:27.1]} 24... Bd6 {[%clk
0:02:04.5]} 25. Rc3 {[%clk 0:00:25.6]} 25... Qa7 {[%clk 0:02:03.7]} 26. Nbc5
{[%clk 0:00:17.3]} 26... g6 {[%clk 0:01:56.1]} 27. g4 {[%clk 0:00:17.4]} 27...
Rdc8 {[%clk 0:01:56.7]} 28. Qe3 {[%clk 0:00:17.7]} 28... Bxc5 {[%clk 0:01:39.7]}
29. Rxc5 {[%clk 0:00:16.8]} 29... Rd8 {[%clk 0:01:33.8]} 30. d6 {[%clk
0:00:11.3]} 30... Qd7 {[%clk 0:01:31.9]} 31. Nc3 {[%clk 0:00:11.9]} 31... Qxg4
{[%clk 0:01:32.7]} 32. Qxe5 {[%clk 0:00:10.7]} 32... Qg2 {[%clk 0:01:22.7]} 33.
Ne4 {[%clk 0:00:10.7]} 33... Qf3 {[%clk 0:01:06.2]} 34. Rc1 {[%clk 0:00:08.4]}
34... Qf5 {[%clk 0:00:40.6]} 35. Nf6+ {[%clk 0:00:08.5]} 35... Kh8 {[%clk
0:00:40.3]} 36. Qxf5 {[%clk 0:00:09.2]} 36... gxf5 {[%clk 0:00:41.5]} 37. d7
{[%clk 0:00:10.7]} 37... f4 {[%clk 0:00:38.1]} 38. Rf1 {[%clk 0:00:07.5]} 38...
Rb6 {[%clk 0:00:28.3]} 39. Rxf4 {[%clk 0:00:07.6]} 39... Rd6 {[%clk 0:00:28.1]}
40. Rh5 {[%clk 0:00:04.8]} 40... Rd1# {[%clk 0:00:27.7]} 0-1

[Event "*** Titled Tuesday Blitz"]
[Site "Chess.com"]
[Date "2019.08.06"]
[Round "1"]
[White "fancyknightmaneuvers"]
[Black "esteban062000"]
[Result "1-0"]
[WhiteElo "2574"]
[BlackElo "2151"]
[TimeControl "180+2"]
[EndTime "13:09:00 PDT"]
[Termination "fancyknightmaneuvers won by resignation"]

1. e4 {[%clk 0:03:01.9]} 1... c5 {[%clk 0:02:57.2]} 2. Nf3 {[%clk 0:02:58.7]}
2... g6 {[%clk 0:02:57.2]} 3. d4 {[%clk 0:02:58.2]} 3... cxd4 {[%clk 0:02:57.2]}
4. Qxd4 {[%clk 0:03:00.1]} 4... Nf6 {[%clk 0:02:57.4]} 5. e5 {[%clk 0:02:53.3]}
5... Nc6 {[%clk 0:02:57.6]} 6. Qa4 {[%clk 0:02:45.8]} 6... Nd5 {[%clk
0:02:55.3]} 7. Qe4 {[%clk 0:02:47]} 7... Nb6 {[%clk 0:02:55.1]} 8. Nc3 {[%clk
0:02:47.4]} 8... d5 {[%clk 0:02:52.7]} 9. exd6 {[%clk 0:02:47.5]} 9... Bf5
{[%clk 0:02:52.6]} 10. Qh4 {[%clk 0:02:40.9]} 10... Qxd6 {[%clk 0:02:43.2]} 11.
Bb5 {[%clk 0:02:36.8]} 11... Bg7 {[%clk 0:02:35.7]} 12. O-O {[%clk 0:02:34.8]}
12... O-O {[%clk 0:02:33.2]} 13. Bh6 {[%clk 0:02:36.2]} 13... Ne5 {[%clk
0:02:20.9]} 14. Nxe5 {[%clk 0:02:32.3]} 14... Qxe5 {[%clk 0:02:15]} 15. Bxg7
{[%clk 0:02:31.7]} 15... Kxg7 {[%clk 0:02:12.1]} 16. Rfe1 {[%clk 0:02:32.8]}
16... Qf6 {[%clk 0:02:10.9]} 17. Qb4 {[%clk 0:02:20.7]} 17... e6 {[%clk
0:01:47.6]} 18. Rac1 {[%clk 0:02:15.3]} 18... Rac8 {[%clk 0:01:35.7]} 19. Bf1
{[%clk 0:02:09.9]} 19... Rfd8 {[%clk 0:01:33.5]} 20. a4 {[%clk 0:01:53.7]} 20...
Rd4 {[%clk 0:01:33.4]} 21. Qb5 {[%clk 0:01:51.4]} 21... Rd2 {[%clk 0:01:18.6]}
22. Re2 {[%clk 0:01:32.8]} 22... Rcd8 {[%clk 0:01:12.2]} 23. a5 {[%clk
0:01:29.9]} 23... Bg4 {[%clk 0:01:00.7]} 24. Ne4 {[%clk 0:01:17.3]} 24... Bxe2
{[%clk 0:00:52]} 25. Bxe2 {[%clk 0:01:04.2]} 25... Qd4 {[%clk 0:00:51.6]} 26.
Nxd2 {[%clk 0:01:03.7]} 26... Qxd2 {[%clk 0:00:51.6]} 27. Rf1 {[%clk 0:00:45.8]}
27... Rd5 {[%clk 0:00:50.1]} 28. Qb3 {[%clk 0:00:46.3]} 28... Qxe2 {[%clk
0:00:29.5]} 29. Qc3+ {[%clk 0:00:42.9]} 29... e5 {[%clk 0:00:24.3]} 30. h3
{[%clk 0:00:29.1]} 30... Rd1 {[%clk 0:00:23.3]} 31. Rxd1 {[%clk 0:00:27.3]}
31... Qxd1+ {[%clk 0:00:25.2]} 32. Kh2 {[%clk 0:00:28.4]} 32... Nd5 {[%clk
0:00:23.5]} 33. Qxe5+ {[%clk 0:00:29.2]} 33... Nf6 {[%clk 0:00:24.8]} 34. g4
{[%clk 0:00:26.9]} 34... Qf3 {[%clk 0:00:18]} 35. Qd4 {[%clk 0:00:20.5]} 35...
Qe4 {[%clk 0:00:16.4]} 36. Qc3 {[%clk 0:00:20.9]} 36... Qf4+ {[%clk 0:00:17.5]}
37. Kg2 {[%clk 0:00:22.3]} 37... g5 {[%clk 0:00:18.9]} 38. Qb3 {[%clk
0:00:20.9]} 38... Kg6 {[%clk 0:00:20.1]} 39. Qxb7 {[%clk 0:00:20.8]} 39... Qe4+
{[%clk 0:00:21.7]} 40. Qxe4+ {[%clk 0:00:21.4]} 40... Nxe4 {[%clk 0:00:23.6]}
41. b4 {[%clk 0:00:22.8]} 41... Nd6 {[%clk 0:00:25]} 42. f3 {[%clk 0:00:23.6]}
42... f5 {[%clk 0:00:26.7]} 43. Kf2 {[%clk 0:00:24.7]} 43... f4 {[%clk
0:00:27.9]} 44. Ke2 {[%clk 0:00:26.1]} 44... Kf6 {[%clk 0:00:29.8]} 45. Kd3
{[%clk 0:00:27.6]} 45... Ke5 {[%clk 0:00:31.7]} 46. c4 {[%clk 0:00:28.6]} 46...
Ke6 {[%clk 0:00:33]} 47. Kd4 {[%clk 0:00:29.7]} 47... Nb7 {[%clk 0:00:34.2]} 48.
a6 {[%clk 0:00:30.2]} 48... Nd8 {[%clk 0:00:35.2]} 49. b5 {[%clk 0:00:30.6]}
49... Kd6 {[%clk 0:00:36.7]} 50. c5+ {[%clk 0:00:31.8]} 50... Kd7 {[%clk
0:00:37.6]} 51. Kd5 {[%clk 0:00:30.8]} 51... h6 {[%clk 0:00:37.3]} 52. b6 {[%clk
0:00:31.2]} 52... axb6 {[%clk 0:00:38.7]} 53. a7 {[%clk 0:00:32.5]} 53... Kc8
{[%clk 0:00:40.4]} 54. a8=Q+ {[%clk 0:00:33.8]} 54... Kd7 {[%clk 0:00:41.9]} 55.
c6+ {[%clk 0:00:34.8]} 55... Nxc6 {[%clk 0:00:42.9]} 56. Qxc6+ {[%clk
0:00:35.6]} 56... Ke7 {[%clk 0:00:43.7]} 57. Qe6+ {[%clk 0:00:36.3]} 57... Kd8
{[%clk 0:00:44.7]} 58. Qf7 {[%clk 0:00:37.2]} 58... Kc8 {[%clk 0:00:45.7]} 59.
Kc6 {[%clk 0:00:38.5]} 1-0

[Event "*** Titled Tuesday Blitz"]
[Site "Chess.com"]
[Date "2019.08.06"]
[Round "1"]
[White "MFBerna"]
[Black "I-Mesquita"]
[Result "0-1"]
[WhiteElo "2370"]
[BlackElo "2716"]
[TimeControl "180+2"]
[EndTime "13:09:03 PDT"]
[Termination "I-Mesquita won by resignation"]

1. e4 {[%clk 0:03:00.5]} 1... e5 {[%clk 0:02:58]} 2. Nf3 {[%clk 0:03:01.3]} 2...
Nc6 {[%clk 0:02:58.6]} 3. Bc4 {[%clk 0:02:59.6]} 3... Bc5 {[%clk 0:02:58.6]} 4.
O-O {[%clk 0:02:59.8]} 4... Nf6 {[%clk 0:02:59.3]} 5. d3 {[%clk 0:02:59.9]} 5...
d6 {[%clk 0:02:59]} 6. c3 {[%clk 0:03:00.3]} 6... a5 {[%clk 0:02:50.3]} 7. Re1
{[%clk 0:02:55.1]} 7... O-O {[%clk 0:02:51]} 8. h3 {[%clk 0:02:50.2]} 8... h6
{[%clk 0:02:42.1]} 9. Nbd2 {[%clk 0:02:50.6]} 9... Qe7 {[%clk 0:02:30.7]} 10.
Nf1 {[%clk 0:02:49.7]} 10... Be6 {[%clk 0:02:30.5]} 11. Ng3 {[%clk 0:02:40]}
11... Bxc4 {[%clk 0:02:30.4]} 12. dxc4 {[%clk 0:02:41.9]} 12... Qe6 {[%clk
0:02:27.2]} 13. Qe2 {[%clk 0:02:42.4]} 13... Ne7 {[%clk 0:02:21.5]} 14. b3
{[%clk 0:02:40.2]} 14... Kh7 {[%clk 0:02:13]} 15. Be3 {[%clk 0:02:40.2]} 15...
Bxe3 {[%clk 0:02:11]} 16. Qxe3 {[%clk 0:02:42.1]} 16... a4 {[%clk 0:02:11.3]}
17. Nd2 {[%clk 0:02:28.1]} 17... Nd7 {[%clk 0:02:06.1]} 18. b4 {[%clk
0:02:26.7]} 18... b6 {[%clk 0:01:59]} 19. Qd3 {[%clk 0:01:56.8]} 19... g6 {[%clk
0:01:50]} 20. Ndf1 {[%clk 0:01:42.3]} 20... f5 {[%clk 0:01:44.8]} 21. exf5
{[%clk 0:01:44.2]} 21... Nxf5 {[%clk 0:01:44.5]} 22. Ne4 {[%clk 0:01:34]} 22...
Rf7 {[%clk 0:01:33]} 23. Nh2 {[%clk 0:01:31.7]} 23... Raf8 {[%clk 0:01:31.5]}
24. Nf3 {[%clk 0:01:24.6]} 24... Kg7 {[%clk 0:01:24.8]} 25. Rad1 {[%clk
0:01:23.1]} 25... Nf6 {[%clk 0:01:22.3]} 26. Nxf6 {[%clk 0:01:15.4]} 26... Qxf6
{[%clk 0:01:22.5]} 27. Nd2 {[%clk 0:01:03]} 27... g5 {[%clk 0:01:09.4]} 28. Ne4
{[%clk 0:01:03.7]} 28... Qg6 {[%clk 0:01:10.8]} 29. c5 {[%clk 0:01:00.7]} 29...
bxc5 {[%clk 0:01:02.9]} 30. bxc5 {[%clk 0:01:02.6]} 30... Rd8 {[%clk 0:00:43]}
31. Qc4 {[%clk 0:00:43]} 31... Nh4 {[%clk 0:00:27.5]} 32. cxd6 {[%clk
0:00:39.2]} 32... cxd6 {[%clk 0:00:28.6]} 33. Qd5 {[%clk 0:00:23.8]} 33... g4
{[%clk 0:00:27.4]} 34. Nxd6 {[%clk 0:00:15]} 34... Nf3+ {[%clk 0:00:15.9]} 35.
Kh1 {[%clk 0:00:12.1]} 35... Nxe1 {[%clk 0:00:17]} 36. Qxe5+ {[%clk 0:00:09]}
36... Kh7 {[%clk 0:00:17.1]} 37. Nxf7 {[%clk 0:00:07.5]} 37... Rf8 {[%clk
0:00:09.9]} 38. Rxe1 {[%clk 0:00:06]} 38... gxh3 {[%clk 0:00:11.5]} 39. gxh3
{[%clk 0:00:05]} 39... Rxf7 {[%clk 0:00:12.2]} 40. Qe4 {[%clk 0:00:05.7]} 40...
Rxf2 {[%clk 0:00:11.4]} 41. Qxg6+ {[%clk 0:00:06.3]} 41... Kxg6 {[%clk
0:00:13.3]} 42. Rg1+ {[%clk 0:00:05]} 42... Kf5 {[%clk 0:00:13.8]} 43. Rg2
{[%clk 0:00:06.9]} 43... Rf3 {[%clk 0:00:14.7]} 44. Rg4 {[%clk 0:00:07.1]} 44...
Rxh3+ {[%clk 0:00:14.9]} 45. Kg2 {[%clk 0:00:08.5]} 45... Kxg4 {[%clk
0:00:15.8]} 0-1

[Event "*** Titled Tuesday Blitz"]
[Site "Chess.com"]
[Date "2019.08.06"]
[Round "1"]
[White "politeplayer"]
[Black "Dhaydon19"]
[Result "1-0"]
[WhiteElo "2251"]
[BlackElo "2604"]
[TimeControl "180+2"]
[EndTime "13:09:05 PDT"]
[Termination "politeplayer won by resignation"]

1. e4 {[%clk 0:03:01.9]} 1... c6 {[%clk 0:03:00.4]} 2. d4 {[%clk 0:03:01.6]}
2... d5 {[%clk 0:03:00.9]} 3. exd5 {[%clk 0:03:02.3]} 3... cxd5 {[%clk
0:03:01.9]} 4. c4 {[%clk 0:03:03.8]} 4... Nf6 {[%clk 0:03:02.5]} 5. Nc3 {[%clk
0:03:04.9]} 5... dxc4 {[%clk 0:03:02.9]} 6. Bxc4 {[%clk 0:03:03.1]} 6... e6
{[%clk 0:03:04]} 7. Nf3 {[%clk 0:03:00.4]} 7... Be7 {[%clk 0:03:04.7]} 8. O-O
{[%clk 0:02:59.9]} 8... O-O {[%clk 0:03:04.9]} 9. Re1 {[%clk 0:03:00.6]} 9... a6
{[%clk 0:03:05.5]} 10. Bg5 {[%clk 0:02:57.1]} 10... b5 {[%clk 0:03:05.7]} 11.
Bb3 {[%clk 0:02:55.5]} 11... Bb7 {[%clk 0:03:06.2]} 12. d5 {[%clk 0:02:51.8]}
12... b4 {[%clk 0:02:57.5]} 13. dxe6 {[%clk 0:02:30.1]} 13... bxc3 {[%clk
0:02:55.7]} 14. exf7+ {[%clk 0:02:30.7]} 14... Kh8 {[%clk 0:02:55.8]} 15. Bxf6
{[%clk 0:01:56.3]} 15... gxf6 {[%clk 0:02:22.8]} 16. Nd4 {[%clk 0:01:43.6]}
16... cxb2 {[%clk 0:02:12.7]} 17. Rb1 {[%clk 0:01:30.3]} 17... Nc6 {[%clk
0:02:10.8]} 18. Nxc6 {[%clk 0:01:00.7]} 18... Bxc6 {[%clk 0:02:07.6]} 19. Qh5
{[%clk 0:00:53.3]} 19... Qd2 {[%clk 0:00:47.6]} 20. Rxe7 {[%clk 0:00:43.9]}
20... Rad8 {[%clk 0:00:48.2]} 21. Qf5 {[%clk 0:00:21.6]} 21... Qg5 {[%clk
0:00:34.6]} 22. Qxg5 {[%clk 0:00:22.6]} 22... fxg5 {[%clk 0:00:36.5]} 23. Rxb2
{[%clk 0:00:23.8]} 23... Bb5 {[%clk 0:00:33.3]} 24. h3 {[%clk 0:00:22.9]} 24...
Kg7 {[%clk 0:00:33.5]} 25. Rc2 {[%clk 0:00:18.9]} 25... Rd6 {[%clk 0:00:33.4]}
26. Rc5 {[%clk 0:00:18.6]} 26... h6 {[%clk 0:00:34]} 27. Ra7 {[%clk 0:00:18.2]}
27... Rf6 {[%clk 0:00:34.3]} 28. a4 {[%clk 0:00:18.3]} 28... Bd3 {[%clk
0:00:35.2]} 29. Rcc7 {[%clk 0:00:17.2]} 29... Rb6 {[%clk 0:00:34.5]} 30. Bd5
{[%clk 0:00:16.4]} 30... Rb1+ {[%clk 0:00:34.7]} 31. Kh2 {[%clk 0:00:16.8]}
31... Rb2 {[%clk 0:00:35.8]} 32. Ra8 {[%clk 0:00:17.2]} 32... Rxa8 {[%clk
0:00:32.5]} 33. Bxa8 {[%clk 0:00:18]} 33... Rxf2 {[%clk 0:00:34.4]} 34. Bd5
{[%clk 0:00:19.1]} 34... Bg6 {[%clk 0:00:35]} 35. Ra7 {[%clk 0:00:18.8]} 35...
Bd3 {[%clk 0:00:33.5]} 36. Ra8 {[%clk 0:00:17.6]} 36... Rxf7 {[%clk 0:00:26.3]}
37. Bxf7 {[%clk 0:00:17.5]} 37... Kxf7 {[%clk 0:00:28.2]} 38. Kg3 {[%clk
0:00:16.7]} 38... Kg6 {[%clk 0:00:29.4]} 39. Rb8 {[%clk 0:00:17.2]} 39... h5
{[%clk 0:00:27.7]} 40. Rb6+ {[%clk 0:00:17.6]} 40... Kf5 {[%clk 0:00:28.4]} 41.
Kf3 {[%clk 0:00:17.1]} 41... g4+ {[%clk 0:00:28.3]} 42. hxg4+ {[%clk 0:00:17.5]}
42... hxg4+ {[%clk 0:00:30.2]} 43. Ke3 {[%clk 0:00:18.5]} 43... Bf1 {[%clk
0:00:31.4]} 44. g3 {[%clk 0:00:18.6]} 44... Bc4 {[%clk 0:00:31.5]} 45. Rc6
{[%clk 0:00:18.7]} 45... Bf1 {[%clk 0:00:30.8]} 46. Rc5+ {[%clk 0:00:19.2]}
46... Ke6 {[%clk 0:00:32.1]} 47. Kf4 {[%clk 0:00:20]} 47... Bh3 {[%clk
0:00:31.3]} 48. Rg5 {[%clk 0:00:20.3]} 48... Kd6 {[%clk 0:00:31.8]} 49. Rg6+
{[%clk 0:00:21.3]} 1-0

[Event "*** Titled Tuesday Blitz"]
[Site "Chess.com"]
[Date "2019.08.06"]
[Round "1"]
[White "Everyfishknows"]
[Black "Shahinyan_ChessMood"]
[Result "0-1"]
[WhiteElo "2386"]
[BlackElo "2748"]
[TimeControl "180+2"]
[EndTime "13:09:08 PDT"]
[Termination "Shahinyan_ChessMood won by checkmate"]

1. Nf3 {[%clk 0:02:58.4]} 1... e6 {[%clk 0:03:00.2]} 2. c4 {[%clk 0:02:59]} 2...
f5 {[%clk 0:03:01.4]} 3. d4 {[%clk 0:02:59]} 3... Nf6 {[%clk 0:03:03.3]} 4. Nc3
{[%clk 0:03:00]} 4... d5 {[%clk 0:03:04.2]} 5. Bf4 {[%clk 0:02:56.9]} 5... c6
{[%clk 0:03:05.5]} 6. e3 {[%clk 0:02:56.3]} 6... Bd6 {[%clk 0:03:05.4]} 7. Bd3
{[%clk 0:02:44.6]} 7... O-O {[%clk 0:03:05.5]} 8. O-O {[%clk 0:02:39.1]} 8...
Ne4 {[%clk 0:03:06.4]} 9. Qc2 {[%clk 0:02:26.2]} 9... Qe7 {[%clk 0:03:05.7]} 10.
Nd2 {[%clk 0:02:16.4]} 10... Nd7 {[%clk 0:03:04.5]} 11. f3 {[%clk 0:02:15.6]}
11... Nxd2 {[%clk 0:03:00.5]} 12. Qxd2 {[%clk 0:02:16.5]} 12... Bxf4 {[%clk
0:03:00.1]} 13. exf4 {[%clk 0:02:17.4]} 13... dxc4 {[%clk 0:03:02]} 14. Bxc4
{[%clk 0:02:18.4]} 14... Nb6 {[%clk 0:03:03.7]} 15. Bb3 {[%clk 0:02:15.7]} 15...
Rd8 {[%clk 0:02:57.8]} 16. Qe3 {[%clk 0:02:12.6]} 16... Qf6 {[%clk 0:02:51]} 17.
Rad1 {[%clk 0:02:04.3]} 17... a5 {[%clk 0:02:51.1]} 18. Rfe1 {[%clk 0:02:01.8]}
18... Kf7 {[%clk 0:02:37.7]} 19. a3 {[%clk 0:00:59.5]} 19... Nd5 {[%clk
0:02:23.5]} 20. Nxd5 {[%clk 0:00:56.5]} 20... exd5 {[%clk 0:02:23.1]} 21. Bc2
{[%clk 0:00:50.6]} 21... Bd7 {[%clk 0:02:19.6]} 22. Qc3 {[%clk 0:00:42.7]} 22...
Qd6 {[%clk 0:02:12.5]} 23. Re5 {[%clk 0:00:41.9]} 23... g6 {[%clk 0:02:14]} 24.
Rde1 {[%clk 0:00:42.7]} 24... Re8 {[%clk 0:02:15.5]} 25. Qe3 {[%clk 0:00:31.1]}
25... b5 {[%clk 0:02:09.6]} 26. g3 {[%clk 0:00:22.1]} 26... b4 {[%clk
0:02:05.9]} 27. h4 {[%clk 0:00:16.2]} 27... bxa3 {[%clk 0:01:57.2]} 28. bxa3
{[%clk 0:00:18.1]} 28... h5 {[%clk 0:01:57.4]} 29. Kg2 {[%clk 0:00:18.5]} 29...
Rab8 {[%clk 0:01:54.7]} 30. Qc3 {[%clk 0:00:19.4]} 30... Rxe5 {[%clk 0:01:51.6]}
31. fxe5 {[%clk 0:00:20.1]} 31... Qc7 {[%clk 0:01:46]} 32. Qe3 {[%clk 0:00:16]}
32... Be6 {[%clk 0:01:40.5]} 33. Qh6 {[%clk 0:00:15.2]} 33... Rg8 {[%clk
0:01:39.9]} 34. Qh7+ {[%clk 0:00:13.5]} 34... Rg7 {[%clk 0:01:40.4]} 35. Qh8
{[%clk 0:00:15]} 35... Qb6 {[%clk 0:01:31.7]} 36. Rb1 {[%clk 0:00:12.8]} 36...
Qa7 {[%clk 0:01:16.7]} 37. Rb8 {[%clk 0:00:12.8]} 37... Qe7 {[%clk 0:01:18.1]}
38. Ba4 {[%clk 0:00:09.7]} 38... Bd7 {[%clk 0:01:16.8]} 39. Rb7 {[%clk 0:00:09]}
39... Rg8 {[%clk 0:01:17]} 40. Qh7+ {[%clk 0:00:10.2]} 40... Rg7 {[%clk
0:01:18.4]} 41. Qh8 {[%clk 0:00:11.8]} 41... Rg8 {[%clk 0:01:01.3]} 42. Qh6
{[%clk 0:00:12.2]} 42... Qe6 {[%clk 0:00:53.2]} 43. Qh7+ {[%clk 0:00:10.6]}
43... Rg7 {[%clk 0:00:54.6]} 44. Qh8 {[%clk 0:00:11.9]} 44... Rg8 {[%clk
0:00:54.8]} 45. Qh7+ {[%clk 0:00:13.1]} 45... Rg7 {[%clk 0:00:55.8]} 46. Qh8
{[%clk 0:00:14.4]} 46... f4 {[%clk 0:00:54.2]} 47. Rb8 {[%clk 0:00:04.3]} 47...
Qh3+ {[%clk 0:00:53.1]} 48. Kf2 {[%clk 0:00:05.9]} 48... Qxg3+ {[%clk
0:00:50.6]} 49. Ke2 {[%clk 0:00:07.4]} 49... Qg2+ {[%clk 0:00:51.2]} 50. Ke1
{[%clk 0:00:08.9]} 50... Qg1+ {[%clk 0:00:52.1]} 51. Ke2 {[%clk 0:00:10.4]}
51... Qe3+ {[%clk 0:00:53.6]} 52. Kf1 {[%clk 0:00:11.1]} 52... Bh3# {[%clk
0:00:52.2]} 0-1